Cogmind - Beta 13 @@@ ROGUE MODE // 2024.03.04 @ 21:43:22 Player: rCartos Result: Destroyed by S-10 Pest with Light Assault Rifle Performance ------------- Evolutions (1) 500 Regions Visited (3) 600 Robots Destroyed (28) 140 Value Destroyed (548) 548 Prototype IDs (2) 40 Alien Tech Used (0) 0 Bonus (48) 48 TOTAL SCORE: 1876 Bonus ------- Follower Combat Kills 107 Friendly Fire -59 Cogmind --------- Core Integrity 0/400 Matter 254/300 Energy 100/100 System Corruption 1% Temperature Cool (0) Movement Core (700) Ox13 Location -9/Materials Parts ------- > --- POWER (1) -------- (None) > --- PROPULSION (2) --- (None) > --- UTILITY (4) ------ High-capacity Storage Unit Visual Processing Unit Targeting Computer > --- WEAPON (2) ------- (None) > --- INVENTORY (20) --- VTOL Module Datajack Datajack Peak State ------------ > --- POWER ------------ Light Ion Engine > --- PROPULSION ------- Light Treads Light Treads > --- UTILITY ---------- High-capacity Storage Unit Visual Processing Unit Signal Interpreter Targeting Computer > --- WEAPON ----------- EM Pulse Cannon EM Pulse Cannon > --- INVENTORY -------- Improved Terrain Scanner Datajack Datajack [Rating: 14] Favorites ----------- Power Light Ion Engine Engine Light Ion Engine Propulsion Flight Unit Treads Light Treads Leg Aluminum Leg Wheel Armored Wheel Flight Unit Flight Unit Utility Visual Processing Unit Device Improved Terrain Scanner Storage Large Storage Unit Processor Visual Processing Unit Weapon Small Laser Energy Gun Small Laser Energy Cannon EM Pulse Cannon Ballistic Gun Light Assault Rifle Ballistic Cannon Light Cannon Launcher Grenade Launcher Build | -11 -10 -10 -9 ------- Run | Yrd Mat Min Mat Slots Evolved 2 | . . . 2 Power . | . . . . Propulsion . | . . . . Utility 2 | . . . 2 Weapon . | . . . . Parts Attached 33 | 4 10 . 19 Power 4 | 1 1 . 2 Engine 4 | 1 1 . 2 Core . | . . . . Reactor . | . . . . Propulsion 9 | 2 2 . 5 Treads 3 | . . . 3 Leg 3 | 2 . . 1 Wheel 1 | . . . 1 Hover . | . . . . Flight 2 | . 2 . . Utility 9 | . 5 . 4 Device 1 | . . . 1 Storage 5 | . 4 . 1 Processor 3 | . 1 . 2 Hackware . | . . . . Protection . | . . . . Artifact . | . . . . Weapon 11 | 1 2 . 8 Energy Gun 4 | 1 . . 3 Energy Cannon 2 | . . . 2 Ballistic Gun 1 | . . . 1 Ballistic Cannon 2 | . . . 2 Launcher 2 | . 2 . . Special Weapon . | . . . . Impact Weapon . | . . . . Slashing Weapon . | . . . . Piercing Weapon . | . . . . Special Melee Weapon . | . . . . Unidentified Prototypes . | . . . . Corrupted Parts 1 | . . . 1 System Corruption 1 | . . . 1 Parts Lost 12 | . . 1 11 Power 2 | . . . 2 Propulsion 3 | . . 1 2 Utility 2 | . . . 2 Weapon 5 | . . . 5 Highest Loss Streak 5 | . . 1 5 To Critical Strikes . | . . . . Average Slot Usage (%) 84 | . 91 86 80 Engine 10 | . 14 14 6 Treads 5 | . . . 10 Leg 3 | . 17 . . Flight 7 | . 9 15 . Storage 12 | . 14 14 11 Processor 21 | . 8 14 31 Energy Gun 9 | . 14 14 4 Energy Cannon 2 | . . . 4 Ballistic Cannon 3 | . . . 7 Launcher 7 | . 12 14 1 Naked Turns . | . . . . Heaviest Build 55 | 4 47 27 55 Greatest Support 40 | 20 20 8 40 Greatest Overweight (x) 15 | . 6 6 15 Average Overweight (x) 2 | . 1 5 2 Largest Inventory Capacity 20 | 5 15 15 20 Average Capacity 15 | 5 12 15 19 Most Carried 8 | 4 7 7 8 Average Carried 4 | . 3 6 4 Final Capacity 20 | 5 15 15 20 Final Carried 7 | . 6 7 3 Class Distribution -------------------- 79% | Mutant 20% | Scavenger-Mutant Dominant Class ---------------- Mutant | -10/Materials Mutant | -10/Mines Mutant | -9/Materials Resources | -11 -10 -10 -9 ----------- Run | Yrd Mat Min Mat Matter Collected 643 | 240 126 28 249 Remotely . | . . . . Salvage Created 543 | 37 193 71 242 Parts 54 | 1 19 10 24 Haulers Intercepted . | . . . . Recyclers Shooed 1 | . . . 1 Parts Field Recycled . | . . . . Retrieved Matter . | . . . . Parts Self-Destructed . | . . . . Prevented . | . . . . Kills | -11 -10 -10 -9 ------- Run | Yrd Mat Min Mat Combat Hostiles Destroyed 19 | 1 3 5 10 Melee 2 | . . . 2 Guns 7 | 1 1 2 3 Cannons 5 | . . . 5 AOE 5 | . 2 3 . Classes Destroyed 7 | 1 5 . 1 Builder 2 | . 2 . . Recycler 2 | . 2 . . Operator 1 | . 1 . . Watcher 4 | . 2 . 2 Swarmer 11 | . 3 3 5 Grunt 7 | 1 . 2 4 Sentry 1 | . . . 1 Best Kill Streak 5 | 1 4 5 4 Combat Bots Only 5 | 1 3 5 3 Max Kills in Single Turn 3 | 1 2 3 1 Gunslinging . | . . . . Exploded 2 | . 2 2 . Melee 1 | . . . 1 Uniques/NPCs Destroyed . | . . . . Combat | -11 -10 -10 -9 -------- Run | Yrd Mat Min Mat Hostile Shots Fired 240 | 5 7 9 219 Missed 66 | 1 4 2 59 Damage Taken 1722 | 46 158 99 1419 Core 482 | . 78 . 404 Absorbed by Shields . | . . . . Regen/Repaired (Parts) 151 | . 25 . 126 Core Remaining (%) 84 | 100 . 68 . Volleys Fired 63 | 4 16 3 40 Largest 2 | 1 2 2 2 Hottest 126 | 40 70 70 126 Shots Fired 96 | 4 29 6 57 Gun 54 | 4 16 3 31 Cannon 21 | . . . 21 Launcher 21 | . 13 3 5 Special . | . . . . Kinetic 23 | . . . 23 Thermal 43 | 4 16 3 20 Explosive 21 | . 13 3 5 Electromagnetic 9 | . . . 9 Robot Hit Streak 7 | 2 2 5 7 Robot Miss Streak 4 | 1 3 . 4 Penetration Max . | . . . . Secondary Targets . | . . . . Shots Hit Robots 40 | 3 9 4 24 Core Hits 43 | 2 13 8 20 Critical Kills . | . . . . Critical Parts Destroyed . | . . . . Critical Strikes . | . . . . Melee Attacks . | . . . . Impact . | . . . . Slashing . | . . . . Piercing . | . . . . Sneak Attacks . | . . . . Combat Hostiles . | . . . . Follow-up Attacks . | . . . . Damage Inflicted 1465 | 32 578 239 616 Guns 195 | 32 30 24 109 Cannons 255 | . . . 255 Explosions 981 | . 548 215 218 Melee . | . . . . Ramming 34 | . . . 34 Kinetic 162 | . . . 162 Thermal 155 | 32 30 24 69 Explosive 981 | . 548 215 218 Electromagnetic 133 | . . . 133 Impact . | . . . . Slashing . | . . . . Piercing . | . . . . Highest Corruption 1 | . . . 1 Average Corruption 1 | . . . 1 Corruption Purged . | . . . . Corruption Blocked . | . . . . Effects 5 | . . . 5 Message Errors 1 | . . . 1 Matter Fused 1 | . . . 1 Energy Discharges 1 | . . . 1 Data Loss (minor) 1 | . . . 1 Data Loss (major) 1 | . . . 1 Overload Shots . | . . . . Overflow Damage 23 | . 16 . 7 Projectiles 1 | . . . 1 Explosions 22 | . 16 . 6 Melee . | . . . . Knockbacks 2 | . . . 2 Impact . | . . . . Kinetic 1 | . . . 1 Secondary 1 | . . . 1 Self-Inflicted Damage 175 | . 137 26 12 Shots 7 | . 5 1 1 Rammed 17 | . . 1 16 Targets Rammed 18 | . . 1 17 Kicked . | . . . . Crushed 1 | . . . 1 Highest Temperature 162 | 18 27 74 162 Average Temperature 30 | 13 8 48 45 Received Heat Transfer 219 | 24 . 36 159 Siege Activations . | . . . . Robots Corrupted . | . . . . Combat Hostiles . | . . . . Parts Fried 1 | . . . 1 Impact Corruptions . | . . . . Robots Melted . | . . . . Combat Hostiles . | . . . . Parts Melted . | . . . . Heat Transferred 361 | 75 75 50 161 Parts Sabotaged . | . . . . Parts Stolen . | . . . . Parts Stripped . | . . . . Power Chain Reactions . | . . . . Alert | -11 -10 -10 -9 ------- Run | Yrd Mat Min Mat Peak Influence 330 | 20 330 199 225 Initial 50 | . 13 50 . Average 82 | 13 169 73 62 Maximum Alert Level 1 | . 1 . 1 Low Security (%) 89 | 100 69 100 87 Level 1 10 | . 30 . 12 Level 2 . | . . . . Level 3 . | . . . . Level 4 . | . . . . Level 5 . | . . . . High Security . | . . . . Max Security . | . . . . Squads Dispatched 3 | . . . 3 Investigation 2 | . . . 2 Extermination . | . . . . Reinforcement 1 | . . . 1 Assault . | . . . . Garrison . | . . . . Intercept . | . . . . Searches Triggered . | . . . . Construction Impeded . | . . . . Haulers Reinforced . | . . . . Active Scanning Responses . | . . . . Cargo Convoy Interrupts . | . . . . Stealth | -11 -10 -10 -9 --------- Run | Yrd Mat Min Mat Distress Signals 2 | . . . 2 Communications Jammed . | . . . . Distress Signals . | . . . . Times Spotted 33 | 1 6 5 21 Peak Tracking Total 6 | 1 3 5 6 Tactical Retreats 2 | . . . 2 Traps | -11 -10 -10 -9 ------- Run | Yrd Mat Min Mat Traps Triggered . | . . . . Indirectly . | . . . . Trap Hack Attempts . | . . . . Triggered . | . . . . Disarmed . | . . . . Reprogrammed . | . . . . Reused . | . . . . Traps Extracted . | . . . . Installed . | . . . . Triggered . | . . . . Machines | -11 -10 -10 -9 ---------- Run | Yrd Mat Min Mat Machines Disabled 4 | . 4 . . Max in Single Turn 1 | . 1 . . Machines Repaired . | . . . . Machines Dismantled . | . . . . Machines Sabotaged . | . . . . Overloaded Fab Kills . | . . . . Hacking | -11 -10 -10 -9 --------- Run | Yrd Mat Min Mat Machines Accessed 7 | . 2 . 5 Terminals 5 | . 1 . 4 Fabricators . | . . . . Repair Stations 2 | . 1 . 1 Recycling Units . | . . . . Scanalyzers . | . . . . Garrison Access . | . . . . Total Hacks 28 | . 7 . 21 Successful 15 | . 4 . 11 Failed 13 | . 3 . 10 Catastrophic . | . . . . Database Lockouts . | . . . . Manual 2 | . 2 . . Terminals 20 | . 4 . 16 Fabricators . | . . . . Repair Stations 8 | . 3 . 5 Recycling Units . | . . . . Scanalyzers . | . . . . Garrison Access . | . . . . Terminal Hacks 9 | . 2 . 7 Record 3 | . . . 3 Robot Analysis 1 | . . . 1 Prototype ID Bank 1 | . 1 . . Emergency Access Points 1 | . . . 1 Recycling Unit Index 1 | . 1 . . Hauler Manifests 1 | . . . 1 Registered Components 1 | . . . 1 Fabricator Hacks . | . . . . Repair Station Hacks 6 | . 2 . 4 Scan Component 3 | . 1 . 2 Repair 3 | . 1 . 2 Recycling Unit Hacks . | . . . . Scanalyzer . | . . . . Garrison Access Hacks . | . . . . Unauthorized Hacks . | . . . . Terminals . | . . . . Fabricators . | . . . . Repair Stations . | . . . . Recycling Units . | . . . . Scanalyzers . | . . . . Garrison Access . | . . . . Data Cores Recovered . | . . . . Used . | . . . . Hacking Detections 6 | . 2 . 4 Full Trace Events 6 | . 2 . 4 Feedback Events . | . . . . Feedback Blocked . | . . . . Robot Schematics Acquired . | . . . . Robots Built . | . . . . Authchips . | . . . . Time . | . . . . Total Robot Build Rating . | . . . . Part Schematics Acquired . | . . . . Parts Built . | . . . . Authchips . | . . . . Time . | . . . . Total Part Build Rating . | . . . . Parts Repaired 3 | . 1 . 2 Time 71 | . 13 . 58 Parts Recycled . | . . . . Recycled Matter . | . . . . Retrieved Matter . | . . . . Retrieved Components . | . . . . Parts Scanalyzed . | . . . . Part Schematics Acquired . | . . . . Parts Damaged . | . . . . Bothacking | -11 -10 -10 -9 ------------ Run | Yrd Mat Min Mat Used RIF Installer . | . . . . Robots Hacked . | . . . . Non-combat . | . . . . Combat . | . . . . Robot Hacks Applied . | . . . . Relay Couplers Released . | . . . . Fabnet Peak Effective % . | . . . . Robots Rewired . | . . . . Allies Hacked . | . . . . Hacks Repelled . | . . . . Allies | -11 -10 -10 -9 -------- Run | Yrd Mat Min Mat Total Allies 3 | . . 3 . Largest Group 3 | . . 3 2 Highest-Rated Group 66 | . . 66 62 Highest-Rated Ally 31 | . . 31 31 Total Orders . | . . . . Ally Attacks 37 | . . 2 35 Total Damage 313 | . . 20 293 Kills 6 | . . . 6 Allies Corrupted . | . . . . Allies Melted . | . . . . Intel | -11 -10 -10 -9 ------- Run | Yrd Mat Min Mat Robot Analysis Total 1 | . . . 1 Derelict Logs Recovered . | . . . . Drone Launches . | . . . . Drone Recoveries . | . . . . Exploration | -11 -10 -10 -9 ------------- Run | Yrd Mat Min Mat Turns Passed 2691 | 146 478 837 1230 Spaces Moved 853 | 108 200 173 372 Core 73 | 63 . . 10 Treads 275 | . . . 275 Legs 200 | 45 135 . 20 Wheels 58 | . . . 58 Hover . | . . . . Flight 247 | . 65 173 9 Fastest Speed 50 | 50 120 277 120 Average Speed 277 | 79 202 479 281 Slowest Speed 800 | 120 520 520 800 Overloaded Moves . | . . . . Propulsion Burnouts . | . . . . Robots Hopped . | . . . . Cave-ins Triggered . | . . . . Exploration Rate (%) 27 | 8 38 40 22 Regions Visited 3 Branch Regions 1 Pre-discovered Areas . | . . . . Known Exits Taken . | . . . . Unknown Exits Taken 3 | 1 1 1 . Scrap Searched . | . . . . Spaces Dug . | . . . . Terrain Destroyed 152 | . 102 30 20 Melee . | . . . . Projectile . | . . . . AOE 152 | . 102 30 20 Terrain Rammed . | . . . . Walls Destroyed . | . . . . Machines Disabled . | . . . . Actions | -11 -10 -10 -9 --------- Run | Yrd Mat Min Mat Total 1074 | 165 248 177 484 Wait 50 | 44 . . 6 Move 850 | 107 199 172 372 Hop . | . . . . Pick Up 40 | 5 16 1 18 Fast Attach . | . . . . Attach 28 | 4 10 . 14 Detach 1 | . 1 . . Swap 5 | . . . 5 Drop 19 | 1 6 . 12 Fire 63 | 4 16 3 40 Melee . | . . . . Ram 1 | . . 1 . Kick . | . . . . Crush 17 | . . . 17 Escape Stasis . | . . . . Rewire . | . . . . Trap . | . . . . Miscellaneous . | . . . . Route ------- -11/Scrapyard -10/Materials (discovered 3 exits: *Mat / [*Min x2]) -10/Mines -9/Materials History --------- Turn | Location | Event 2 | -11/Scrapyard | Met Revision 17 35 | -11/Scrapyard | Discovered new exit (range 8) 147 | -11/Scrapyard | Entered Materials 235 | -10/Materials | Discovered new exit (range 14) 317 | -10/Materials | Build established: Mutant 407 | -10/Materials | Discovered new exit (range 10) 465 | -10/Materials | Discovered new exit (range 17) 550 | -10/Materials | Repaired Grenade Launcher 625 | -10/Materials | Entered Mines 771 | -10/Mines | Escorted by a lone wolf Derelict 1384 | -10/Mines | Discovered new exit (range 15) 1462 | -10/Mines | Entered Materials 1462 | -9/Materials | Accompanied by 2 allies 1462 | -9/Materials | Evolved 2 slots: Utility x2 1467 | -9/Materials | Led the pair of lost Derelicts to an unsafe place 1908 | -9/Materials | Repaired Lgt. Treads 2405 | -9/Materials | Repaired Beam Rifle 2543 | -9/Materials | Lost 5 parts (1p1n1u2w) 2644 | -9/Materials | Core integrity fell below 50% 2675 | -9/Materials | Core integrity fell below 20% 2692 | -9/Materials | Destroyed by S-10 Pest with Light Assault Rifle Last Messages --------------- Slammed into S-10 Pest. S-10 Pest destroyed. [Achievement: Fist Fight] K-01 Serf collects debris. Acquired Lgt. Assault Rifle. Acquired 5 matter. Slammed into K-01 Serf. Dropped Lgt. Treads. R-06 Scavenger collects Flight Unit. R-06 Scavenger collects Lgt. Treads. Acquired 20 matter. S-10 Pest destroyed. R-06 Scavenger collects Flight Unit. R-06 Scavenger collects Lgt. Assault Rifle. Acquired Particle Gun. Aluminum Leg destroyed. Imp. Terrain Scanner destroyed. Lgt. Assault Rifle destroyed. ,OK,35IR7S1ISADOGAL|B4NBA Particle Gun destroyed. Map ----- +----------------------------------------------------+ | ?????????????????????????????????????????????????? | | ?????????????????????????????????????????????????? | | ?????????????????????????????????????????????????? | | ?????????????????????????????????????????????????? | | ?????????????????????????????????????????????????? | | ?????????????????????????????????????????????????? | | ?????????????????????????????????????????????????? | | ?????????????????????????????????????????????????? | | ?????????????????????????????????????????????????? | | ?????????????????????????????????????????????????? | | ?????????????????????????????????????????????????? | | ??????????????????????????? ?????????????????????? | | ???????????????????????????????? ????????????????? | | ??????????????????#?????????????"????????????????? | | ??????????#???#??????????????????????????????????? | | ??????????#????????????? ????????????????????????? | | ???????????????#??????? ?????????????????????????? | | ?????#??#??????????###########???????????????????? | | #???########?#????## #???????????????????? | | ##### ######### """ """ ##??????????????????? | | = # ## # """ """ #???????????????????? | | = # " " ## """# """ """ #???????????????????? | | # "R" ## """# #???????????????????? | | # """ ## """# s #???????????????????? | | # #? # s%= #???????????????????? | | ###+####??? # s @ #???????????????????? | | # #######+####+########??????????????????? | | ##### #??????????????????? | | #??# +? ????????????????? | | #??# % #??"???????????????? | | #?## ###################/#??????????????????? | | ###### ### ??"??????? ???????#??????????????????? | | ##"""# #???????????+???????????"????????????????? | | ##"T"# ###??????"????????????????"? ????????????? | | #??? ??????????????????????????????????? | | #??????* #????????????????????????????? | | ! T #??? #?"????????????#?????????????? | | ! # #????????????????????????????? | | ] # #?? ?????????????????????????? | | !! ########/#?#?????????? ????????????????? | | !! %# % = ??? ?????????????????????????? | | !! # % ??????????????????????????? | | ???????????????????????????? | | ##???????????????????????????? | | #????????????????????????????? | | = /????????????????????????????? | | ####????????????????????????????? | | #???????????????????????????????? | | ##+########+###+#???????????????????????????????? | | ## ????????????????????????????????????????????? | +----------------------------------------------------+ Best States ------------- Heat Dissipation 28 Energy Generation 10 Energy Capacity 125 Matter Stores 300 Matter Capacity 300 Sight Range 18 Terrain Scan Range 16 Terrain Scan Density 10 Evasion (%) 55 Targeting Accuracy 5 Recoil Reduction 2 Item Schematics ----------------- None Robot Schematics ------------------ None Fabricated ------------ Nothing Alien Tech Used ----------------- None Achievements -------------- Fist Fight One Hack Too Far Part-time Mechanic Shopping List Uninvited Guest Challenges ------------ None Game ------ Seed PiercingMetafieldFilter Manual? 0 Play Time 00:33:25 Cumulative 1.3 hours Start 2024.03.04 @ 21:11:05 End 2024.03.04 @ 21:43:22 Sessions 1 Manual Loads 0 Difficulty Rogue Special Mode None Game No. 2 Rogue 2 Adventurer 0 Explorer 0 Win Type - Total 0 Types 0/0/0/0/0/0/0/0/0 Lore% 0 Gallery% 2 Achievement% 2 Wizard Run 0 Options --------- Layout 1 ASCII 0 Keyboard 0 Movement Arrows Keybinds 0 Fullscreen 1 Font 16/Terminus Map View 25x20 Zoom Use 92% Tactical HUD 0 Map Filters NONE Filters NONE Steam 1 RUN: 075b5064-cb6b-445d-bd58-38ee968e4568